fUSD/lending_fUSD_20260217
["ID","MTS","AMOUNT","RATE_DAILY","PERIOD"]
[405798793,1771323032193,-1095.76793944,8.3e-05,2]
[405798794,1771323032202,-943.87270283,8.3e-05,2]
[405798795,1771323032213,-151.89523661,8.3e-05,2]
[405798796,1771323032223,-1095.76793944,8.3e-05,2]
[405798797,1771323032232,-1095.76793944,8.3e-05,2]
[405798798,1771323032242,-1095.76793944,8.3e-05,2]
[405798799,1771323032251,-1003.43336206,8.3e-05,2]
[405798801,1771323037431,-451.35166012,8.299e-05,2]
[405798802,1771323037442,-92.33457738,8.3e-05,2]
[405798803,1771323037452,-1095.76793944,8.3e-05,2]
[405798804,1771323037462,-1095.76793944,8.3e-05,2]
[405798805,1771323037473,-1095.76793944,8.3e-05,2]
[405798806,1771323037483,-1095.76793944,8.3e-05,2]
[405798807,1771323037494,-1095.76793944,8.3e-05,2]
[405798808,1771323037504,-1095.76793944,8.3e-05,2]
[405798809,1771323037514,-1095.76793944,8.3e-05,2]
[405798810,1771323037524,-1095.76793944,8.3e-05,2]
[405798811,1771323037534,-1095.76793944,8.3e-05,2]
[405798812,1771323037544,-1095.76793944,8.3e-05,2]
[405798813,1771323037555,-1095.76793944,8.3e-05,2]
[405798814,1771323037565,-1095.76793944,8.3e-05,2]
[405798815,1771323037575,-1095.76793944,8.3e-05,2]
[405798816,1771323037585,-1095.76793944,8.3e-05,2]
[405798817,1771323037595,-1095.76793944,8.3e-05,2]
[405798818,1771323037605,-1095.76793944,8.3e-05,2]
[405798819,1771323037615,-1095.76793944,8.3e-05,2]
[405798820,1771323037626,-1095.76793944,8.3e-05,2]
[405798821,1771323037636,-1095.76793944,8.3e-05,2]
[405798822,1771323037647,-1095.76793944,8.3e-05,2]
[405798823,1771323037657,-1095.76793944,8.3e-05,2]
[405798824,1771323037668,-1095.76793944,8.3e-05,2]
[405798825,1771323037678,-1095.76793944,8.3e-05,2]
[405798826,1771323037688,-1095.76793944,8.3e-05,2]
[405798827,1771323037697,-1095.76793944,8.3e-05,2]
[405798829,1771323037708,-1095.76793944,8.3e-05,2]
[405798830,1771323037717,-1095.76793944,8.3e-05,2]
[405798831,1771323037728,-1095.76793944,8.3e-05,2]
[405798832,1771323037739,-1095.76793944,8.3e-05,2]
[405798833,1771323037749,-1085.495115,8.3e-05,2]
[405798834,1771323037759,-1085.495115,8.3e-05,2]
[405798835,1771323037769,-1085.495115,8.3e-05,2]
[405798836,1771323037779,-1085.495115,8.3e-05,2]
[405798837,1771323037789,-1085.495115,8.3e-05,2]
[405798838,1771323037798,-1085.495115,8.3e-05,2]
[405798839,1771323037808,-1085.495115,8.3e-05,2]
[405798840,1771323037818,-1085.495115,8.3e-05,2]
[405798841,1771323037828,-1085.495115,8.3e-05,2]
[405798842,1771323037839,-1085.495115,8.3e-05,2]
[405798843,1771323037848,-1085.495115,8.3e-05,2]
[405798844,1771323037858,-1085.495115,8.3e-05,2]
[405798845,1771323037868,-1085.495115,8.3e-05,2]
[405798846,1771323037877,-1085.495115,8.3e-05,2]
[405798847,1771323037887,-1085.495115,8.3e-05,2]
[405798848,1771323037897,-1085.495115,8.3e-05,2]
[405798849,1771323037907,-1085.495115,8.3e-05,2]
[405798850,1771323037917,-1085.495115,8.3e-05,2]
[405798851,1771323037927,-1085.495115,8.3e-05,2]
[405798852,1771323037941,-175.58289005,8.3e-05,2]
[405798853,1771323037951,-6449.81355103,8.3e-05,2]
[405798854,1771323037960,-147515.91,8.301e-05,2]
[405798855,1771323037970,-7609.4532204,8.43e-05,2]
[405798856,1771323037982,-2797.490378,8.43e-05,2]
[405798857,1771323037992,-150.99,8.499e-05,2]
[405798858,1771323038002,-5509.74,8.499e-05,2]
[405798859,1771323038015,-9999.99,8.499e-05,2]
[405798860,1771323038025,-999.99,8.499e-05,2]
[405798861,1771323038035,-634.31942086,8.529e-05,2]
[405798862,1771323038044,-297.12478339,8.529e-05,2]
[405798863,1771323038055,-83420.67,8.529e-05,2]
[405798864,1771323038064,-150.99,8.529e-05,2]
[405798865,1771323038079,-9999.99,8.529e-05,2]
[405798866,1771323038089,-29124.47,8.529e-05,2]
[405798867,1771323038098,-299.99,8.529e-05,2]
[405798868,1771323038108,-500.0,8.548e-05,2]
[405798869,1771323038118,-500.0,8.548e-05,2]
[405798870,1771323038128,-500.0,8.548e-05,2]
[405798871,1771323038137,-500.0,8.548e-05,2]
[405798872,1771323038147,-500.0,8.548e-05,2]
[405798873,1771323038156,-500.0,8.548e-05,2]
[405798874,1771323038166,-500.0,8.548e-05,2]
[405798875,1771323038176,-500.0,8.548e-05,2]
[405798876,1771323038186,-153.46203052,8.548e-05,2]
[405798877,1771323038196,-500.0,8.574e-05,2]
[405798878,1771323038206,-165.3,8.806e-05,2]
[405798879,1771323038215,-261.0,8.808e-05,2]
[405798880,1771323038225,-500.0,8.848e-05,2]
[405798881,1771323038234,-1600.0,8.89e-05,2]
[405798882,1771323038244,-151.0,8.942e-05,2]
[405798883,1771323038253,-151.0,8.942e-05,2]
[405798884,1771323038263,-32850.4601,8.945e-05,2]
[405798885,1771323038272,-882239.2871,8.945e-05,2]
[405798886,1771323038282,-830.0,9.004e-05,2]
[405798887,1771323038293,-1056.81130613,9.044e-05,2]
[405798888,1771323038303,-339329.51693631,9.046e-05,2]
[405798889,1771323038313,-500.0,9.122e-05,2]
[405798890,1771323038322,-250.0,9.127e-05,2]
[405798891,1771323038332,-193.0,9.127e-05,2]
[405798892,1771323038342,-980.0,9.127e-05,2]
[405798893,1771323038352,-255.0,9.129e-05,2]
[405798894,1771323038362,-1680.0,9.129e-05,2]
[405798895,1771323038373,-420.0,9.129e-05,2]
[405798896,1771323038382,-500.0,9.138e-05,2]
[405798897,1771323038392,-500.0,9.138e-05,2]
[405798898,1771323038401,-500.0,9.138e-05,2]
[405798899,1771323038411,-763.0,9.138e-05,2]
[405798900,1771323038421,-4242.0,9.138e-05,2]
[405798901,1771323038431,-500.0,9.138e-05,2]
[405798902,1771323038441,-150.0,9.138e-05,2]
[405798903,1771323038452,-150.0,9.138e-05,2]
[405798904,1771323038461,-500.0,9.138e-05,2]
[405798905,1771323038471,-500.0,9.138e-05,2]
[405798906,1771323038482,-500.0,9.138e-05,2]
[405798907,1771323038491,-500.0,9.138e-05,2]
[405798908,1771323038500,-500.0,9.138e-05,2]
[405798909,1771323038510,-500.0,9.138e-05,2]
[405798910,1771323038519,-150.31509327,9.138e-05,2]
[405798911,1771323038528,-500.0,9.138e-05,2]
[405798912,1771323038538,-572.0,9.138e-05,2]
[405798913,1771323038549,-150.0,9.138e-05,2]
[405798914,1771323038559,-500.0,9.138e-05,2]
[405798915,1771323038569,-500.0,9.138e-05,2]
[405798916,1771323038579,-500.0,9.138e-05,2]
[405798917,1771323038588,-150.0,9.138e-05,2]
[405798918,1771323038598,-500.0,9.138e-05,2]
[405798919,1771323038607,-500.0,9.138e-05,2]
[405798920,1771323038616,-150.0,9.138e-05,2]
[405798921,1771323038626,-150.0,9.138e-05,2]
[405798922,1771323038636,-500.0,9.193e-05,2]
[405798923,1771323038647,-500.0,9.193e-05,2]
[405798924,1771323038657,-500.0,9.193e-05,2]
[405798925,1771323038667,-763.0,9.193e-05,2]
[405798926,1771323038677,-4242.0,9.193e-05,2]
[405798927,1771323038687,-500.87477363,9.193e-05,2]
[405798928,1771323038697,-150.0,9.193e-05,2]
[405798929,1771323038707,-150.0,9.193e-05,2]
[405798930,1771323038717,-500.0,9.193e-05,2]
[405798931,1771323038727,-500.0,9.193e-05,2]
[405798932,1771323038738,-500.0,9.193e-05,2]
[405798933,1771323038748,-500.0,9.193e-05,2]
[405798934,1771323038757,-500.0,9.193e-05,2]
[405798935,1771323038767,-500.0,9.193e-05,2]
[405798936,1771323038776,-500.0,9.193e-05,2]
[405798937,1771323038786,-572.0,9.193e-05,2]
[405798938,1771323038796,-500.0,9.193e-05,2]
[405798939,1771323038807,-201.09695119,9.193e-05,2]
[405798940,1771323038817,-500.0,9.193e-05,2]
[405798941,1771323038827,-500.0,9.193e-05,2]
[405798942,1771323038836,-150.07216309,9.193e-05,2]
[405798943,1771323038847,-537.18600864,9.193e-05,2]
[405798944,1771323038857,-500.0,9.193e-05,2]
[405798945,1771323038867,-313.19,9.211e-05,2]
[405798946,1771323038876,-500.0,9.248e-05,2]
[405798947,1771323038886,-500.0,9.248e-05,2]
[405798948,1771323038895,-500.0,9.248e-05,2]
[405798949,1771323038908,-763.0,9.248e-05,2]
[405798950,1771323038918,-4242.0,9.248e-05,2]
[405798951,1771323038928,-150.0,9.248e-05,2]
[405798952,1771323038941,-202.16866536,9.248e-05,2]
[405798953,1771323038951,-500.0,9.248e-05,2]
[405798954,1771323038961,-187.36614029,9.248e-05,2]
[405798955,1771323038971,-500.0,9.248e-05,2]
[405798956,1771323038981,-500.0,9.248e-05,2]
[405798957,1771323038990,-500.0,9.248e-05,2]
[405798958,1771323039000,-500.0,9.248e-05,2]
[405798959,1771323039011,-500.0,9.248e-05,2]
[405798960,1771323039021,-572.0,9.248e-05,2]
[405798961,1771323039031,-500.0,9.248e-05,2]
[405798962,1771323039040,-500.0,9.248e-05,2]
[405798963,1771323039050,-500.0,9.248e-05,2]
[405798964,1771323039059,-500.0,9.248e-05,2]
[405798965,1771323039068,-178.36591542,9.302e-05,2]
[405798966,1771323039078,-500.0,9.302e-05,2]
[405798967,1771323039087,-500.0,9.302e-05,2]
[405798968,1771323039097,-763.0,9.302e-05,2]
[405798969,1771323039107,-4242.0,9.302e-05,2]
[405798970,1771323039116,-329.95129651,9.302e-05,2]
[405798971,1771323039126,-500.0,9.302e-05,2]
[405798972,1771323039135,-500.0,9.302e-05,2]
[405798973,1771323039144,-500.0,9.302e-05,2]
[405798974,1771323039155,-500.0,9.302e-05,2]
[405798975,1771323039166,-500.0,9.302e-05,2]
[405798977,1771323039176,-572.0,9.302e-05,2]
[405798978,1771323039185,-500.0,9.302e-05,2]
[405798979,1771323039195,-510.76125773,9.302e-05,2]
[405798980,1771323039205,-500.0,9.302e-05,2]
[405798981,1771323039215,-500.0,9.302e-05,2]
[405798982,1771323039225,-500.0,9.357e-05,2]
[405798983,1771323039235,-500.0,9.357e-05,2]
[405798984,1771323039244,-763.0,9.357e-05,2]
[405798985,1771323039254,-4242.0,9.357e-05,2]
[405798986,1771323039263,-500.0,9.357e-05,2]
[405798987,1771323039274,-500.0,9.357e-05,2]
[405798988,1771323039285,-500.0,9.357e-05,2]
[405798989,1771323039295,-500.0,9.357e-05,2]
[405798990,1771323039305,-500.0,9.357e-05,2]
[405798991,1771323039315,-572.0,9.357e-05,2]
[405798992,1771323039324,-500.33776257,9.357e-05,2]
[405798993,1771323039334,-500.0,9.357e-05,2]
[405798994,1771323039343,-500.0,9.357e-05,2]
[405798995,1771323039353,-165.3,9.393e-05,2]
[405798996,1771323039362,-500.0,9.396e-05,2]
[405798997,1771323039372,-500.0,9.396e-05,2]
[405798998,1771323039381,-150.0,9.396e-05,2]
[405798999,1771323039391,-500.0,9.396e-05,2]
[405799000,1771323039400,-150.0,9.396e-05,2]
[405799001,1771323039410,-500.0,9.396e-05,2]
[405799002,1771323039419,-150.0,9.396e-05,2]
[405799003,1771323039429,-150.0,9.396e-05,2]
[405799004,1771323039438,-150.0,9.396e-05,2]
[405799005,1771323039448,-500.0,9.396e-05,2]
[405799006,1771323039457,-500.0,9.396e-05,2]
[405799007,1771323039467,-150.0,9.396e-05,2]
[405799008,1771323039476,-500.0,9.396e-05,2]
[405799009,1771323039486,-237.28842339,9.396e-05,2]
[405799010,1771323039496,-500.0,9.396e-05,2]
[405799011,1771323039505,-500.0,9.412e-05,2]
[405799012,1771323039516,-500.0,9.412e-05,2]
[405799013,1771323039525,-763.0,9.412e-05,2]
[405799014,1771323039535,-4242.0,9.412e-05,2]
[405799015,1771323039544,-500.0,9.412e-05,2]
[405799016,1771323039553,-464.38268717,9.412e-05,2]
[405799017,1771323039564,-500.0,9.412e-05,2]
[405799018,1771323039573,-500.0,9.412e-05,2]
[405799019,1771323039583,-500.0,9.412e-05,2]
[405799020,1771323039593,-572.0,9.412e-05,2]
[405799021,1771323039603,-500.0,9.412e-05,2]
[405799022,1771323039614,-500.0,9.412e-05,2]
[405799023,1771323039623,-500.0,9.451e-05,2]
[405799024,1771323039633,-150.0,9.451e-05,2]
[405799025,1771323039642,-500.0,9.451e-05,2]
[405799026,1771323039652,-244.28993987,9.451e-05,2]
[405799027,1771323039662,-500.0,9.451e-05,2]
[405799028,1771323039671,-150.0,9.451e-05,2]
[405799029,1771323039681,-150.0,9.451e-05,2]
[405799030,1771323039691,-150.0,9.451e-05,2]
[405799031,1771323039701,-500.0,9.451e-05,2]
[405799032,1771323039711,-649.65624143,9.451e-05,2]
[405799033,1771323039722,-205.12968692,9.451e-05,2]
[405799034,1771323039732,-500.0,9.451e-05,2]
[405799035,1771323039742,-500.0,9.451e-05,2]
[405799036,1771323039751,-500.0,9.467e-05,2]
[405799037,1771323039761,-475.49905426,9.467e-05,2]
[405799038,1771323039770,-763.0,9.467e-05,2]
[405799039,1771323039780,-4242.0,9.467e-05,2]
[405799040,1771323039790,-500.0,9.467e-05,2]
[405799041,1771323039799,-500.0,9.467e-05,2]
[405799042,1771323039809,-500.0,9.467e-05,2]
[405799043,1771323039818,-500.0,9.467e-05,2]
[405799044,1771323039827,-572.0,9.467e-05,2]
[405799045,1771323039836,-500.0,9.467e-05,2]
[405799046,1771323039845,-500.0,9.467e-05,2]
[405799047,1771323039854,-1338.69920235,9.467e-05,2]
[405799048,1771323039863,-500.0,9.506e-05,2]
[405799049,1771323039872,-242.84628954,9.506e-05,2]
[405799050,1771323039882,-152.12850518,9.506e-05,2]
[405799051,1771323039891,-500.0,9.506e-05,2]
[405799052,1771323039900,-150.0,9.506e-05,2]
[405799053,1771323039910,-200.36674187,9.506e-05,2]
[405799054,1771323039919,-200.18645604,9.506e-05,2]
[405799055,1771323039929,-500.0,9.506e-05,2]
[405799056,1771323039941,-220.15883999,9.506e-05,2]
[405799057,1771323039951,-500.0,9.506e-05,2]
[405799058,1771323039961,-500.0,9.522e-05,2]
[405799059,1771323039971,-763.0,9.522e-05,2]
[405799060,1771323039981,-4242.0,9.522e-05,2]
[405799061,1771323039991,-500.0,9.522e-05,2]
[405799062,1771323040000,-500.0,9.522e-05,2]
[405799063,1771323040012,-500.0,9.522e-05,2]
[405799064,1771323040022,-500.0,9.522e-05,2]
[405799065,1771323040031,-572.0,9.522e-05,2]
[405799066,1771323040040,-500.0,9.522e-05,2]
[405799067,1771323040049,-500.0,9.522e-05,2]
[405799068,1771323040058,-500.0,9.56e-05,2]
[405799069,1771323040067,-200.89245722,9.56e-05,2]
[405799070,1771323040077,-500.0,9.56e-05,2]
[405799071,1771323040087,-500.0,9.56e-05,2]
[405799072,1771323040096,-500.0,9.576e-05,2]
[405799073,1771323040106,-763.0,9.576e-05,2]
[405799074,1771323040115,-4242.0,9.576e-05,2]
[405799075,1771323040125,-155.81655615,9.576e-05,2]
[405799076,1771323040136,-500.0,9.576e-05,2]
[405799077,1771323040145,-500.0,9.576e-05,2]
[405799078,1771323040154,-500.0,9.576e-05,2]
[405799079,1771323040164,-572.0,9.576e-05,2]
[405799080,1771323040173,-500.0,9.576e-05,2]
[405799082,1771323040183,-500.0,9.576e-05,2]
[405799084,1771323040193,-500.0,9.615e-05,2]
[405799085,1771323040203,-500.0,9.615e-05,2]
[405799086,1771323040215,-500.0,9.615e-05,2]
[405799087,1771323040226,-500.0,9.631e-05,2]
[405799088,1771323040493,-763.0,9.631e-05,2]
[405799089,1771323040504,-4242.0,9.631e-05,2]
[405799090,1771323040514,-500.0,9.631e-05,2]
[405799091,1771323040524,-500.0,9.631e-05,2]
[405799092,1771323040534,-500.0,9.631e-05,2]
[405799093,1771323040545,-572.0,9.631e-05,2]
[405799094,1771323040555,-500.0,9.631e-05,2]
[405799095,1771323040566,-350.0,9.631e-05,2]
[405799096,1771323040577,-233.13055887,9.652e-05,2]
[405799097,1771323040587,-67026.95284498,9.655e-05,2]
[405799098,1771323040597,-9999.99,9.67e-05,2]
[405799099,1771323040607,-1401.0,9.67e-05,2]
[405799100,1771323040617,-29999.99,9.67e-05,2]
[405799101,1771323040627,-500.0,9.67e-05,2]
[405799102,1771323040636,-500.0,9.67e-05,2]
[405799103,1771323040646,-500.0,9.67e-05,2]
[405799104,1771323040656,-500.0,9.67e-05,2]
[405799105,1771323040666,-151.0,9.67e-05,2]
[405799106,1771323040676,-500.0,9.686e-05,2]
[405799107,1771323040686,-763.0,9.686e-05,2]
[405799108,1771323040695,-4242.0,9.686e-05,2]
[405799109,1771323040705,-500.0,9.686e-05,2]
[405799110,1771323040714,-500.0,9.686e-05,2]
[405799111,1771323040724,-500.0,9.686e-05,2]
[405799112,1771323040734,-572.0,9.686e-05,2]
[405799113,1771323040743,-500.0,9.686e-05,2]
[405799114,1771323040753,-397.033314,9.723e-05,2]
[405799115,1771323040762,-500.0,9.725e-05,2]
[405799116,1771323040772,-382.17209928,9.725e-05,2]
[405799117,1771323040782,-500.0,9.725e-05,2]
[405799118,1771323040792,-500.0,9.729e-05,2]
[405799119,1771323040802,-500.0,9.741e-05,2]
[405799120,1771323040812,-763.0,9.741e-05,2]
[405799121,1771323040822,-4242.0,9.741e-05,2]
[405799122,1771323040832,-500.0,9.741e-05,2]
[405799123,1771323040843,-211.9355564,9.741e-05,2]
[405799124,1771323040852,-500.0,9.741e-05,2]
[405799125,1771323040863,-572.0,9.741e-05,2]
[405799126,1771323040872,-500.0,9.741e-05,2]
[405799127,1771323040882,-500.0,9.78e-05,2]
[405799128,1771323040891,-500.0,9.78e-05,2]
[405799129,1771323040901,-500.0,9.796e-05,2]
[405799130,1771323040910,-763.0,9.796e-05,2]
[405799131,1771323040919,-4242.0,9.796e-05,2]
[405799132,1771323040931,-500.0,9.796e-05,2]
[405799133,1771323040942,-498.26652801,9.796e-05,2]
[405799134,1771323040951,-572.0,9.796e-05,2]
[405799135,1771323040961,-500.0,9.796e-05,2]
[405799136,1771323040970,-34377.98187185,9.834e-05,2]
[405799137,1771323040979,-500.0,9.834e-05,2]
[405799138,1771323040990,-500.0,9.834e-05,2]
[405799139,1771323040999,-500.0,9.85e-05,2]
[405799140,1771323041009,-763.0,9.85e-05,2]
[405799141,1771323041018,-4242.0,9.85e-05,2]
[405799142,1771323041028,-611.76249723,9.85e-05,2]
[405799143,1771323041037,-572.0,9.85e-05,2]
[405799144,1771323041047,-616.33885806,9.85e-05,2]
[405799145,1771323041056,-1600.0,9.878e-05,2]
[405799146,1771323041065,-500.0,9.889e-05,2]
[405799147,1771323041074,-500.0,9.889e-05,2]
[405799148,1771323041084,-500.0,9.905e-05,2]
[405799149,1771323041094,-763.0,9.905e-05,2]
[405799150,1771323041103,-4242.0,9.905e-05,2]
[405799151,1771323041113,-572.0,9.905e-05,2]
[405799152,1771323041122,-500.0,9.944e-05,2]
[405799153,1771323041131,-500.0,9.944e-05,2]
[405799154,1771323041140,-500.0,9.944e-05,2]
[405799155,1771323041150,-26082.55038646,9.948e-05,2]
[405799156,1771323041159,-500.0,9.96e-05,2]
[405799157,1771323041169,-763.0,9.96e-05,2]
[405799158,1771323041178,-4242.0,9.96e-05,2]
[405799159,1771323041188,-572.0,9.96e-05,2]
[405799160,1771323041199,-165.3,9.98e-05,2]
[405799161,1771323041208,-163.51122534,9.999e-05,2]
[405799162,1771323041217,-500.0,9.999e-05,2]
[405799163,1771323041227,-174.44086209,0.0001,2]
[405799164,1771323041237,-174.44086209,0.0001,2]
[405799165,1771323041247,-500.0,0.0001,2]
[405799166,1771323041256,-200.0,0.0001,2]
[405799167,1771323041266,-500.0,0.0001,2]
[405799168,1771323041275,-500.0,0.0001,2]
[405799169,1771323041284,-500.0,0.0001,2]
[405799170,1771323041294,-500.0,0.0001,2]
[405799171,1771323041302,-500.0,0.0001,2]
[405799172,1771323041312,-151.0,0.0001,2]
[405799173,1771323041322,-500.0,0.0001,2]
[405799174,1771323041331,-151.0,0.0001,2]
[405799175,1771323041341,-500.0,0.0001,2]
[405799176,1771323041351,-151.0,0.0001,2]
[405799177,1771323041361,-500.0,0.0001,2]
[405799178,1771323041370,-500.0,0.0001,2]
[405799179,1771323041379,-151.0,0.0001,2]
[405799180,1771323041390,-500.0,0.0001,2]
[405799181,1771323041399,-151.0,0.0001,2]
[405799182,1771323041409,-500.0,0.0001,2]
[405799183,1771323041418,-151.0,0.0001,2]
[405799184,1771323041428,-151.0,0.0001,2]
[405799185,1771323041437,-151.0,0.0001,2]
[405799186,1771323041447,-151.0,0.0001,2]
[405799187,1771323041458,-151.0,0.0001,2]
[405799188,1771323041468,-151.0,0.0001,2]
[405799189,1771323041477,-151.0,0.0001,2]
[405799190,1771323041487,-151.0,0.0001,2]
[405799191,1771323041497,-151.0,0.0001,2]
[405799192,1771323041507,-200.0,0.0001,2]
[405799193,1771323041517,-151.0,0.0001,2]
[405799194,1771323041527,-151.0,0.0001,2]
[405799195,1771323041537,-151.0,0.0001,2]
[405799196,1771323041547,-500.0,0.0001,2]
[405799197,1771323041556,-151.0,0.0001,2]
[405799198,1771323041566,-500.0,0.0001,2]
[405799199,1771323041575,-151.0,0.0001,2]
[405799200,1771323041584,-500.0,0.0001,2]
[405799201,1771323041594,-151.0,0.0001,2]
[405799202,1771323041603,-500.0,0.0001,2]
[405799203,1771323041613,-500.0,0.0001,2]
[405799204,1771323041623,-500.0,0.0001,2]
[405799205,1771323041632,-500.0,0.0001,2]
[405799206,1771323041642,-500.0,0.0001,2]
[405799207,1771323041651,-500.0,0.0001,2]
[405799208,1771323041662,-500.0,0.0001,2]
[405799209,1771323041672,-500.0,0.0001,2]
[405799210,1771323041681,-151.0,0.0001,2]
[405799211,1771323041691,-151.0,0.0001,2]
[405799212,1771323041700,-151.0,0.0001,2]
[405799213,1771323041709,-151.0,0.0001,2]
[405799214,1771323041719,-151.0,0.0001,2]
[405799215,1771323041729,-151.0,0.0001,2]
[405799216,1771323041739,-151.0,0.0001,2]
[405799217,1771323041750,-151.0,0.0001,2]
[405799218,1771323041759,-151.0,0.0001,2]
[405799219,1771323041770,-151.0,0.0001,2]
[405799220,1771323041780,-151.0,0.0001,2]
[405799221,1771323041789,-274.0,0.0001,2]
[405799222,1771323041800,-274.0,0.0001,2]
[405799223,1771323041809,-276.85061866,0.0001,2]
[405799224,1771323041818,-1576.69293966,0.0001,2]
[405799225,1771323041827,-935.75302246,0.0001,2]
[405799226,1771323041836,-500.0,0.00010015,2]
[405799227,1771323041845,-763.0,0.00010015,2]
[405799228,1771323041855,-4242.0,0.00010015,2]
[405799229,1771323041864,-572.0,0.00010015,2]
[405799230,1771323041874,-26082.55038646,0.00010033,2]
[405799231,1771323041884,-433.0,0.00010042,2]
[405799232,1771323041893,-2351.0,0.00010042,2]
[405799233,1771323041902,-587.0,0.00010042,2]
[405799234,1771323041912,-224.65460803,0.00010054,2]
[405799235,1771323041922,-156.268,0.00010069,2]
[405799236,1771323041936,-500.0,0.0001007,2]
[405799237,1771323041946,-763.0,0.0001007,2]
[405799238,1771323041956,-4242.0,0.0001007,2]
[405799239,1771323041965,-572.0,0.0001007,2]
[405799240,1771323041975,-500.0,0.00010124,2]
[405799241,1771323041984,-763.0,0.00010124,2]
[405799242,1771323041994,-4242.0,0.00010124,2]
[405799243,1771323042006,-572.0,0.00010124,2]
[405799244,1771323042015,-300.0,0.00010159,2]
[405799245,1771323042025,-500.0,0.00010179,2]
[405799246,1771323042034,-763.0,0.00010179,2]
[405799247,1771323042043,-4242.0,0.00010179,2]
[405799248,1771323042052,-572.0,0.00010179,2]
[405799249,1771323042062,-500.0,0.00010218,2]
[405799250,1771323042071,-500.0,0.00010234,2]
[405799251,1771323042080,-763.0,0.00010234,2]
[405799252,1771323042090,-4242.0,0.00010234,2]
[405799253,1771323042099,-572.0,0.00010234,2]
[405799254,1771323042108,-500.0,0.00010289,2]
[405799255,1771323042117,-763.0,0.00010289,2]
[405799256,1771323042127,-4242.0,0.00010289,2]
[405799257,1771323042136,-572.0,0.00010289,2]
[405799258,1771323042145,-500.0,0.00010343,2]
[405799259,1771323042155,-763.0,0.00010343,2]
[405799260,1771323042164,-4242.0,0.00010343,2]
[405799261,1771323042173,-572.0,0.00010343,2]
[405799262,1771323042183,-512.26030593,0.00010398,2]
[405799263,1771323042193,-763.0,0.00010398,2]
[405799264,1771323042203,-4242.729734,0.00010398,2]
[405799265,1771323042212,-581.2655769,0.00010398,2]
[405799266,1771323042222,-500.0,0.00010466,2]
[405799267,1771323042231,-500.0,0.00010492,2]
[405799268,1771323042240,-500.0,0.00010548,2]
[405799269,1771323042249,-200.0,0.00010548,2]
[405799270,1771323042258,-200.0,0.00010548,2]
[405799271,1771323042267,-165.3,0.00010568,2]
[405799272,1771323042277,-200.0,0.0001059,2]
[405799274,1771323042286,-82358.0,0.000106,2]
[405799276,1771323042295,-898.32890406,0.00010665,2]
[405799277,1771323042305,-500.0,0.00010766,2]
[405799279,1771323042315,-164.61380668,0.00010779,2]
[405799280,1771323042324,-500.0,0.00010779,2]
[405799281,1771323042333,-500.0,0.00010779,2]
[405799282,1771323042343,-500.0,0.00010779,2]
[405799283,1771323042353,-500.81972658,0.00010779,2]
[405799284,1771323042363,-160.37289206,0.00010779,2]
[405799285,1771323042374,-500.0,0.00010779,2]
[405799286,1771323042383,-500.0,0.00010779,2]
[405799287,1771323042393,-239.8459294,0.00010779,2]
[405799288,1771323042402,-502.12798245,0.00010779,2]
[405799289,1771323042412,-500.0,0.00010779,2]
[405799291,1771323042421,-501.16029055,0.00010779,2]
[405799292,1771323042431,-1600.0,0.00010866,2]
[405799293,1771323042441,-5814.8526128,0.000109,2]
[405799294,1771323042450,-5814.85261277,0.000109,2]
[405799295,1771323042460,-500.0,0.00010959,2]
[405799296,1771323042471,-226.88409827,0.00010959,2]
[405799298,1771323042481,-150.0,0.00010959,2]
[405799300,1771323042491,-150.0,0.00010959,2]
[405799301,1771323042501,-250.0,0.00010963,2]
[405799302,1771323042511,-5530.0,0.00011,3]
[405799303,1771323042520,-500.0,0.0001104,2]